bitfinex/quotes_BTCUSD_20250617
["timestamp","ask_amount","ask_price","bid_price","bid_amount"]
[1750184039220,0.9083097,104090.0,104080.0,0.0166]
[1750184039454,0.9083097,104090.0,104080.0,0.17792]
[1750184039709,0.9083097,104090.0,104080.0,0.0166]
[1750184039953,0.9083097,104090.0,104060.0,0.0154]
[1750184039954,0.20178716,104070.0,104060.0,0.0154]
[1750184040185,0.53471545,104070.0,104060.0,0.0154]
[1750184041264,0.85803492,104070.0,104060.0,0.16332]
[1750184041486,0.52510663,104070.0,104060.0,0.16332]
[1750184041906,0.52510663,104070.0,104060.0,0.002]
[1750184042126,1.19803492,104070.0,104060.0,0.002]
[1750184042345,0.86510663,104070.0,104060.0,0.2096968]
[1750184042557,0.86510663,104070.0,104060.0,0.0155]
[1750184042800,0.53217834,104070.0,104060.0,0.2106968]
[1750184043016,0.94812888,104070.0,104060.0,0.2086968]
[1750184043235,0.94812888,104070.0,104060.0,0.21930664]
[1750184044108,0.94812888,104070.0,104060.0,0.0175]
[1750184044316,0.95773724,104070.0,104060.0,0.2096968]
[1750184044541,0.95773724,104070.0,104060.0,0.24471601]
[1750184044755,0.5850267,104070.0,104060.0,0.30637907]
[1750184044976,0.5417867,104070.0,104060.0,0.30637907]
[1750184045205,0.5850267,104070.0,104060.0,0.30637907]
[1750184045541,0.34960836,104070.0,104060.0,0.30637907]
[1750184045729,0.34960836,104070.0,104060.0,0.31598826]
[1750184045730,0.38763833,104070.0,104060.0,0.31598826]
[1750184045985,0.38763833,104070.0,104060.0,0.2967696]
[1750184045986,0.62305778,104070.0,104060.0,0.2967696]
[1750184046203,0.62305778,104070.0,104060.0,0.23510654]
[1750184046423,0.62305778,104070.0,104060.0,0.24471619]
[1750184046693,0.62305778,104070.0,104060.0,0.25432566]
[1750184046955,0.43087889,104070.0,104060.0,0.27354413]
[1750184047207,0.44048697,104070.0,104060.0,0.33624786]
[1750184047445,0.09087824,104070.0,104060.0,0.33624786]
[1750184047676,0.11009505,104070.0,104060.0,0.33624786]
[1750184047887,0.11970359,104070.0,104060.0,0.33624786]
[1750184048110,0.10048678,104070.0,104060.0,0.27354413]
[1750184048815,0.09087824,104070.0,104060.0,0.27354413]
[1750184049734,0.10048669,104070.0,104060.0,0.27354413]
[1750184049997,0.11009524,104070.0,104060.0,0.27354413]
[1750184050248,0.11970397,104070.0,104060.0,0.27354413]
[1750184050450,0.1004866,104070.0,104060.0,0.33624786]
[1750184050675,0.11970369,104070.0,104060.0,0.33624786]
[1750184051145,0.11970434,104070.0,104060.0,0.27354413]
[1750184051346,0.11009561,104070.0,104060.0,0.27354413]
[1750184052052,0.11970434,104070.0,104060.0,0.27354413]
[1750184052278,0.11009561,104070.0,104060.0,0.27354413]
[1750184053358,0.10048697,104070.0,104060.0,0.27354413]
[1750184053875,0.10048697,104070.0,104060.0,0.32140426]
[1750184054368,0.11009561,104070.0,104060.0,0.32140426]
[1750184054611,0.10048697,104070.0,104060.0,0.32140426]
[1750184054858,0.07206508,104070.0,104060.0,0.32140426]
[1750184055075,0.08167381,104070.0,104060.0,0.32140426]
[1750184055756,0.08167372,104070.0,104060.0,0.32140426]
[1750184055995,0.08167381,104070.0,104060.0,0.32140426]
[1750184056238,0.08167372,104070.0,104060.0,0.32140426]
[1750184056469,0.07206508,104070.0,104060.0,0.32140426]
[1750184056680,0.08167381,104070.0,104060.0,0.32140426]
[1750184057610,0.28346106,104070.0,104060.0,0.32140426]
[1750184057836,0.27385279,104070.0,104060.0,0.26393485]
[1750184058291,0.08167445,104070.0,104060.0,0.26393485]
[1750184058513,1.18374766,104070.0,104060.0,0.002]
[1750184058751,1.18032214,104070.0,104060.0,0.002]
[1750184059013,1.31303928,104070.0,104060.0,0.002]
[1750184059265,1.34217511,104070.0,104060.0,0.002]
[1750184061410,1.13769511,104070.0,104060.0,0.002]
[1750184061615,1.34217511,104070.0,104060.0,0.002]
[1750184061834,1.13769511,104070.0,104060.0,0.002]
[1750184062046,1.34217511,104070.0,104060.0,0.002]
[1750184064399,1.13769511,104070.0,104060.0,0.002]
[1750184064584,1.12159511,104070.0,104060.0,0.002]
[1750184064773,1.32607511,104070.0,104060.0,0.002]
[1750184064985,1.57580381,104070.0,104060.0,0.002]
[1750184065154,1.37132381,104070.0,104060.0,0.002]
[1750184065580,1.57580381,104070.0,104060.0,0.0181]
[1750184066011,1.59090381,104070.0,104060.0,0.002]
[1750184067121,1.57580381,104070.0,104060.0,0.002]
[1750184067340,1.37121332,104070.0,104060.0,0.002]
[1750184067509,1.57569332,104070.0,104060.0,0.002]
[1750184068148,1.59109332,104070.0,104060.0,0.002]
[1750184068615,0.92541408,104070.0,104060.0,0.002]
[1750184068817,1.59109332,104070.0,104060.0,0.002]
[1750184070331,6.43661332,104070.0,104060.0,0.002]
[1750184070536,6.6508223,104070.0,104060.0,0.002]
[1750184070939,6.65082172,104070.0,104060.0,0.002]
[1750184072257,6.64407332,104070.0,104060.0,0.002]
[1750184072472,6.66536251,104070.0,104060.0,0.002]
[1750184072646,7.20063736,104070.0,104060.0,0.002]
[1750184072854,6.86779774,104070.0,104060.0,0.002]
[1750184073079,6.90623442,104070.0,104060.0,0.002]
[1750184073235,6.86779836,104070.0,104060.0,0.002]
[1750184073752,0.21145647,104040.0,104030.0,0.0313]
[1750184073979,0.92029571,104040.0,104030.0,0.0313]
[1750184075083,1.35653747,104040.0,104030.0,0.016]
[1750184075290,1.50653747,104040.0,104030.0,0.016]
[1750184075919,1.66773747,104040.0,104030.0,0.016]
[1750184076124,1.46337747,104040.0,104030.0,0.021]
[1750184076327,1.66773747,104040.0,104030.0,0.021]
[1750184076552,1.66773747,104040.0,104030.0,0.024]
[1750184077175,1.46337747,104040.0,104030.0,0.024]
[1750184077378,0.88429609,104040.0,104030.0,0.24136484]
[1750184077581,1.08865609,104040.0,104030.0,0.24136484]
[1750184077792,1.08865609,104040.0,104030.0,0.25097735]
[1750184077996,1.08865609,104040.0,104030.0,0.26058968]
[1750184078197,1.08865609,104040.0,104030.0,0.25097735]
[1750184078397,1.07904487,104040.0,104030.0,0.0395]
[1750184078890,1.07904487,104040.0,104030.0,0.23175223]
[1750184079018,1.07904487,104040.0,104030.0,0.0395]
[1750184079591,1.07904487,104040.0,104030.0,0.24136484]
[1750184079810,1.50812625,104040.0,104030.0,0.024]
[1750184080336,0.84244701,104040.0,104030.0,0.024]
[1750184080535,1.50812625,104040.0,104030.0,0.024]
[1750184080843,1.50812625,104040.0,104030.0,0.0399]
[1750184081490,1.51758169,104040.0,104030.0,0.0399]
[1750184082044,1.51758169,104040.0,104030.0,0.23215223]
[1750184082790,1.51758169,104040.0,104030.0,0.0399]
[1750184083200,1.18474207,104040.0,104030.0,0.0399]
[1750184083386,0.98038207,104040.0,104030.0,0.24176484]
[1750184083588,1.18474207,104040.0,104030.0,0.24176484]
[1750184084010,0.98999329,104040.0,104030.0,0.27986349]
[1750184084216,1.04276497,104040.0,104030.0,0.24176484]
[1750184084416,1.04276497,104040.0,104030.0,0.25137726]
[1750184084621,1.03315375,104040.0,104030.0,0.24176484]
[1750184084911,1.02354225,104040.0,104030.0,0.24176484]
[1750184085125,1.02354225,104040.0,104030.0,0.0399]
[1750184086087,1.02354225,104040.0,104030.0,0.24176484]
[1750184086508,1.02354225,104040.0,104030.0,0.25137726]
[1750184086736,1.02354225,104040.0,104030.0,0.24176484]
[1750184086911,1.02354225,104040.0,104030.0,0.25137726]
[1750184087368,1.02354225,104040.0,104030.0,0.24176484]
[1750184087876,1.02354225,104040.0,104030.0,0.25137726]
[1750184088272,1.02354225,104040.0,104030.0,0.24176484]
[1750184088950,1.02354225,104040.0,104030.0,0.25137726]
[1750184089745,1.02354225,104040.0,104030.0,0.24176484]
[1750184090676,1.02354225,104040.0,104030.0,0.0399]
[1750184091312,1.35638187,104040.0,104030.0,0.0399]
[1750184092065,1.51754187,104040.0,104030.0,0.024]
[1750184092275,1.53304187,104040.0,104030.0,0.008]
[1750184094557,1.51754187,104040.0,104030.0,0.008]
[1750184095214,0.88074263,104040.0,104030.0,0.008]
[1750184095380,1.54642187,104040.0,104030.0,0.008]
[1750184095565,1.54642187,104040.0,104030.0,0.0236]
[1750184095760,1.54642187,104040.0,104030.0,0.008]
[1750184096223,1.54642187,104040.0,104030.0,0.0236]
[1750184096721,1.51754187,104040.0,104030.0,0.0236]
[1750184098623,1.68314187,104040.0,104030.0,0.008]
[1750184098961,1.69768272,104040.0,104030.0,0.008]
[1750184099302,6.73807104,104040.0,104020.0,0.086387]
[1750184099511,6.53010565,104030.0,104020.0,0.070587]
[1750184099720,6.19726603,104030.0,104020.0,0.070587]
[1750184099998,6.53010565,104030.0,104020.0,0.070587]
[1750184100208,6.55140358,104030.0,104020.0,0.070587]
[1750184100335,0.55151746,104010.0,104000.0,0.0157]
[1750184100537,0.55151746,104010.0,104000.0,0.0163]
[1750184100538,1.51763846,104010.0,104000.0,0.0163]
[1750184101004,0.20192288,104000.0,103990.0,0.032]
[1750184101214,0.63100426,104000.0,103990.0,0.032]
[1750184101416,1.13212426,104000.0,103990.0,0.032]
[1750184101621,1.28212426,104000.0,103990.0,0.0163]
[1750184102024,1.28212426,104000.0,103990.0,0.02528992]
[1750184102229,0.2019423,103990.0,103980.0,0.0304]
[1750184102438,0.2019423,103990.0,103980.0,0.02398976]
[1750184102439,0.9638633,103990.0,103980.0,0.02398976]
[1750184102647,0.63102368,103990.0,103980.0,0.02398976]
[1750184103061,1.3132878,103990.0,103980.0,0.02398976]
[1750184103492,1.4744078,103990.0,103980.0,0.02398976]
[1750184103947,6.5244078,103990.0,103980.0,0.00898976]
[1750184104384,5.69760856,103990.0,103980.0,0.00998976]
[1750184104585,5.69760856,103990.0,103980.0,0.22604468]
[1750184104586,5.93420642,103990.0,103980.0,0.22604468]
[1750184104793,0.92732642,103990.0,103980.0,0.24461746]
[1750184105010,0.89382245,103990.0,103980.0,0.2542333]
[1750184105228,0.02865628,103990.0,103980.0,0.27446693]
[1750184105425,0.60655884,103990.0,103980.0,0.2552333]
[1750184105627,0.60655884,103990.0,103980.0,0.25589563]
[1750184105838,0.27371922,103990.0,103980.0,0.2655123]
[1750184106040,0.23059922,103990.0,103980.0,0.27512888]
[1750184106280,0.02865609,103990.0,103980.0,0.27512888]
[1750184106466,0.37111118,103990.0,103980.0,0.27512888]
[1750184106677,0.00961547,103990.0,103980.0,0.25359442]
[1750184107091,0.07196697,103990.0,103980.0,0.25359442]
[1750184107293,0.02874662,104000.0,103990.0,0.26198992]
[1750184107505,0.06234946,104000.0,103990.0,0.26198992]
[1750184107717,0.07196438,104000.0,103990.0,0.26198992]
[1750184107918,0.08157948,104000.0,103990.0,0.26198992]
[1750184108112,0.09119467,104000.0,103990.0,0.26198992]
[1750184108327,0.07196438,104000.0,103990.0,0.26198992]
[1750184108747,0.28350264,104000.0,103990.0,0.25437426]
[1750184108938,0.28350264,104000.0,103990.0,0.25337435]
[1750184109154,0.07196438,104000.0,103990.0,0.27160576]
[1750184109323,0.28350237,104000.0,103990.0,0.27160576]
[1750184109528,0.09119468,104000.0,103990.0,0.27360576]
[1750184109714,0.27388829,104000.0,103990.0,0.2447586]
[1750184109918,0.27388829,104000.0,103990.0,0.25437444]
[1750184110138,0.07196522,104000.0,103990.0,0.2639901]
[1750184110311,0.07196522,104000.0,103990.0,0.2659901]
[1750184110527,0.02884512,104000.0,103990.0,0.2659901]
[1750184110738,0.22112679,104010.0,104000.0,0.25425318]
[1750184110951,0.27386088,104010.0,104000.0,0.24463817]
[1750184111153,0.26424642,104010.0,104000.0,0.23502307]
[1750184111329,0.07195722,104010.0,104000.0,0.2638681]
[1750184111558,0.04312,104010.0,104000.0,0.2625681]
[1750184111971,0.26425211,104010.0,104000.0,0.30971928]
[1750184112166,0.06234845,104010.0,104000.0,0.31933401]
[1750184112394,0.74566237,104020.0,104010.0,0.23380356]
[1750184112645,0.88502413,104020.0,104010.0,0.23380366]
[1750184112778,0.628543,104020.0,104010.0,0.24341793]
[1750184112986,0.68106829,104020.0,104010.0,0.25303211]
[1750184113487,0.68106829,104020.0,104010.0,0.0319]
[1750184113488,1.09751271,104020.0,104010.0,0.0319]
[1750184113933,1.09751271,104020.0,104010.0,0.0158]
[1750184114507,1.09751271,104020.0,104010.0,0.0324]
[1750184114708,1.09951271,104020.0,104010.0,0.0324]
[1750184116467,0.68306829,104020.0,104010.0,0.0324]
[1750184116710,1.09951271,104020.0,104010.0,0.0324]
[1750184117782,1.09951271,104020.0,104010.0,0.2246892]
[1750184118029,1.09951271,104020.0,104010.0,0.0324]
[1750184118263,1.09951271,104020.0,104010.0,0.23430366]
[1750184118476,1.09951271,104020.0,104010.0,0.24391802]
[1750184118924,1.09951271,104020.0,104010.0,0.25353229]
[1750184119335,1.09951271,104020.0,104010.0,0.23430366]
[1750184119786,1.09951271,104020.0,104010.0,0.24391802]
[1750184119987,1.09951271,104020.0,104010.0,0.04201446]
[1750184120187,1.09951271,104020.0,104010.0,0.23430366]
[1750184120376,1.09951271,104020.0,104010.0,0.0324]
[1750184120631,0.20190366,104010.0,104000.0,0.23262304]
[1750184120839,0.61834808,104010.0,104000.0,0.23262307]
[1750184121257,0.61834808,104010.0,104000.0,0.24223836]
[1750184121501,0.71458984,104010.0,104000.0,0.0307]
[1750184122092,0.71458984,104010.0,104000.0,0.23362307]
[1750184123288,0.30775904,104010.0,104000.0,0.25285318]
[1750184123496,0.23074498,104010.0,104000.0,0.30472083]
[1750184123700,0.07196151,104010.0,104000.0,0.26246791]
[1750184123927,0.08157569,104010.0,104000.0,0.26246791]
[1750184124271,0.07196151,104010.0,104000.0,0.26246791]
[1750184124485,0.08157569,104010.0,104000.0,0.26246791]
[1750184125288,0.08157569,104010.0,104000.0,0.3250163]
[1750184125709,0.09118996,104010.0,104000.0,0.26246791]
[1750184125853,0.28348,104010.0,104000.0,0.25285318]
[1750184126058,0.07196207,104010.0,104000.0,0.26246791]
[1750184126258,0.01922789,104010.0,104000.0,0.26246791]
[1750184126485,0.04312,104010.0,104000.0,0.26246791]
[1750184126676,0.05273372,104010.0,104000.0,0.26246791]
[1750184126974,0.36863115,104020.0,104010.0,0.22113146]
[1750184127182,0.60402186,104020.0,104010.0,0.25313146]
[1750184127375,0.41175115,104020.0,104010.0,0.25313146]
[1750184127578,0.61363521,104020.0,104010.0,0.25313155]
[1750184127711,0.62324874,104020.0,104010.0,0.41421155]
[1750184127916,0.61363595,104020.0,104010.0,0.40459765]
[1750184128125,0.59440953,104020.0,104010.0,0.39498356]
[1750184128329,0.59440953,104020.0,104010.0,0.40459783]
[1750184128330,1.01085395,104020.0,104010.0,0.40459783]
[1750184128555,1.01285395,104020.0,104010.0,0.40459783]
[1750184128921,1.01285395,104020.0,104010.0,0.39498356]
[1750184129162,1.01285395,104020.0,104010.0,0.41421192]
[1750184129587,0.59640953,104020.0,104010.0,0.41421192]
[1750184129795,0.59640953,104020.0,104010.0,0.42382591]
[1750184129995,0.37063152,104020.0,104010.0,0.49601454]
[1750184130256,0.61555567,104020.0,104010.0,0.47678683]
[1750184130463,0.83972938,104020.0,104010.0,0.27235972]
[1750184130617,0.83972929,104020.0,104010.0,0.43339972]
[1750184130811,0.95825051,104020.0,104010.0,0.42378591]
[1750184131058,0.95825051,104020.0,104010.0,0.4237861]
[1750184131264,0.95825051,104020.0,104010.0,0.4334]
[1750184131421,0.95825051,104020.0,104010.0,0.43339945]
[1750184131824,0.74675301,104020.0,104010.0,0.43339945]
[1750184132202,0.74675301,104020.0,104010.0,0.49597016]
[1750184133032,0.07367152,104020.0,104010.0,0.43339945]
[1750184133239,0.60863707,104020.0,104010.0,0.43339945]
[1750184133441,0.6182506,104020.0,104010.0,0.41417174]
[1750184133651,0.6182506,104020.0,104010.0,0.42378564]
[1750184133872,0.94863762,104020.0,104010.0,0.032]
[1750184134120,0.54192288,104000.0,103990.0,0.0154]
[1750184134342,0.54192288,104000.0,103970.0,0.03829517]
[1750184134343,0.34,103980.0,103970.0,0.03829517]
[1750184134560,1.26078175,103980.0,103970.0,0.0154]
[1750184134791,1.2511648,103980.0,103970.0,0.0154]
[1750184135013,1.34740656,103980.0,103970.0,0.0154]
[1750184135232,0.20198124,103970.0,103960.0,0.04101908]
[1750184135463,0.53506273,103970.0,103960.0,0.0314]
[1750184135671,0.53506273,103970.0,103960.0,0.17694]
[1750184135895,0.87506273,103970.0,103960.0,0.02488652]
[1750184136104,0.97130449,103970.0,103960.0,0.02488725]
[1750184136977,1.05505715,103970.0,103960.0,0.02488725]
[1750184137187,1.05505715,103970.0,103960.0,0.02588725]
[1750184137397,1.05505715,103970.0,103960.0,0.00998725]
[1750184137606,1.08395615,103970.0,103960.0,0.001]
[1750184138051,1.08395615,103970.0,103960.0,0.003]
[1750184139076,1.08395615,103970.0,103960.0,0.0184]
[1750184139288,0.67673988,103970.0,103960.0,0.23723955]
[1750184139492,0.638223,103970.0,103960.0,0.0337]
[1750184139707,0.67164494,103970.0,103960.0,0.04331908]
[1750184139910,0.62860494,103970.0,103960.0,0.24531975]
[1750184140048,0.67164494,103970.0,103960.0,0.24531975]
[1750184140255,0.67164494,103970.0,103960.0,0.0337]
[1750184140974,0.53236318,103970.0,103960.0,0.23570057]
[1750184141198,0.57540318,103970.0,103960.0,0.22608168]
[1750184141400,0.57540318,103970.0,103960.0,0.0337]
[1750184141650,0.99223733,103970.0,103960.0,0.0337]
[1750184142277,0.57540318,103970.0,103960.0,0.0337]
[1750184142736,0.57540318,103970.0,103960.0,0.0184]
[1750184143377,0.99223733,103970.0,103960.0,0.0184]
[1750184143912,0.99223733,103970.0,103960.0,0.0338]
[1750184145868,1.08847909,103970.0,103960.0,0.003]
[1750184146072,0.67164494,103970.0,103960.0,0.23660076]
[1750184146285,0.67164494,103970.0,103960.0,0.0346]
[1750184146490,1.08847909,103970.0,103960.0,0.0185]
[1750184146707,1.08847909,103970.0,103960.0,0.0346]
[1750184146920,0.67164494,103970.0,103960.0,0.24621956]
[1750184147129,0.62860494,103970.0,103960.0,0.24621956]
[1750184147349,0.68126309,103970.0,103960.0,0.23660076]
[1750184147558,0.39265788,103970.0,103960.0,0.25583827]
[1750184147767,0.60425681,103970.0,103960.0,0.25583845]
[1750184147999,0.60425681,103970.0,103960.0,0.26545716]
[1750184148207,1.01147336,103970.0,103960.0,0.0185]
[1750184148434,0.96843281,103970.0,103960.0,0.23660057]
[1750184148649,0.36885261,103970.0,103960.0,0.30162358]
[1750184148854,0.40227492,103970.0,103960.0,0.25583771]
[1750184149073,0.4118928,103970.0,103960.0,0.25583771]
[1750184149328,0.6234921,103970.0,103960.0,0.24621919]
[1750184149572,0.43112892,103970.0,103960.0,0.24621928]
[1750184149808,0.40227492,103970.0,103960.0,0.26545623]
[1750184150052,0.42151039,103970.0,103960.0,0.47228192]
[1750184150270,0.42151039,103970.0,103960.0,0.42649623]
[1750184150489,0.41189242,103970.0,103960.0,0.42649623]
[1750184150716,0.43112817,103970.0,103960.0,0.42649623]
[1750184151161,0.41189233,103970.0,103960.0,0.42649623]
[1750184151345,0.43112799,103970.0,103960.0,0.42649623]
[1750184151885,0.62349117,103970.0,103960.0,0.42649623]
[1750184152086,0.4118927,103970.0,103960.0,0.42649623]
[1750184152323,0.43112873,103970.0,103960.0,0.4168778]
[1750184152532,0.42151067,103970.0,103960.0,0.42649623]
[1750184152748,1.04032606,103970.0,103960.0,0.2558378]
[1750184152974,1.03070865,103970.0,103960.0,0.24621937]
[1750184153217,1.03070865,103970.0,103960.0,0.25583808]
[1750184153440,1.02109105,103970.0,103960.0,0.23660057]
[1750184153659,1.02109105,103970.0,103960.0,0.24621919]
[1750184153880,0.60425736,103970.0,103960.0,0.0346]
[1750184154101,1.01147354,103970.0,103960.0,0.0346]
[1750184155423,1.01147354,103970.0,103960.0,0.0185]
[1750184156054,0.59463939,103970.0,103960.0,0.27763011]
[1750184156258,0.59463939,103970.0,103960.0,0.23590076]
[1750184156472,1.01147354,103970.0,103960.0,0.0185]
[1750184157708,0.59463939,103970.0,103960.0,0.0185]
[1750184157911,1.01147354,103970.0,103960.0,0.0185]
[1750184158677,1.1077153,103970.0,103960.0,0.0185]
[1750184158884,1.18541417,103970.0,103960.0,0.003]
[1750184159093,1.37975909,103970.0,103960.0,0.003]
[1750184159281,1.35181417,103970.0,103960.0,0.003]
[1750184159505,1.35181417,103970.0,103960.0,0.002]
[1750184159705,0.20200057,103960.0,103950.0,0.0313]
[1750184159914,0.87549359,103960.0,103950.0,0.0151]
[1750184160150,1.30522837,103960.0,103950.0,0.0151]
[1750184160359,0.20202001,103950.0,103940.0,0.03064]
[1750184160591,1.30524781,103950.0,103940.0,0.01514]
[1750184161044,1.30524781,103950.0,103940.0,4e-05]
[1750184161065,1.05532634,103950.0,103940.0,4e-05]
[1750184161278,1.21636634,103950.0,103940.0,4e-05]
[1750184162189,1.21636634,103950.0,103940.0,0.00304]
[1750184162703,1.21636634,103950.0,103940.0,0.01804]
[1750184163344,1.21636634,103950.0,103940.0,0.02004]
[1750184164521,0.79930177,103950.0,103940.0,0.02004]
[1750184164742,1.21636634,103950.0,103940.0,0.02004]
[1750184166533,1.70656634,103950.0,103940.0,0.02004]
[1750184166760,1.71604422,103950.0,103940.0,0.02004]
[1750184167851,1.75904422,103950.0,103940.0,0.03554]
[1750184168823,1.75904422,103950.0,103940.0,0.02004]
[1750184169026,1.80338914,103950.0,103940.0,0.00504]
[1750184169359,6.97504422,103950.0,103940.0,0.01402678]
[1750184170120,6.97504422,103950.0,103940.0,0.01102678]
[1750184170339,6.97814422,103950.0,103940.0,0.01102678]
[1750184170549,6.77100422,103950.0,103940.0,0.00902678]
[1750184170753,6.95904422,103950.0,103940.0,0.00902678]
[1750184171009,1.28793965,103950.0,103940.0,0.00902678]
[1750184171266,1.77691022,103950.0,103940.0,0.04082533]
[1750184171491,1.77691022,103950.0,103940.0,0.03184]
[1750184171492,1.94095022,103950.0,103940.0,0.03184]
[1750184171715,1.73391022,103950.0,103940.0,0.03184]
[1750184171918,1.75904422,103950.0,103940.0,0.03184]
[1750184172140,1.76004422,103950.0,103940.0,0.03184]
[1750184172633,0.85029714,103950.0,103940.0,0.25312038]
[1750184172872,0.85029714,103950.0,103940.0,0.29960035]
[1750184172873,0.91253641,103950.0,103940.0,0.29960035]
[1750184173359,0.58215595,103950.0,103940.0,0.25312038]
[1750184173586,0.55343871,103950.0,103940.0,0.25312038]
[1750184173815,0.56305844,103950.0,103940.0,0.27108607]
[1750184174042,0.74583974,103950.0,103940.0,0.25284532]
[1750184174255,0.73622001,103950.0,103940.0,0.25284532]
[1750184174473,0.73522001,103950.0,103940.0,0.27208681]
[1750184174898,0.73522001,103950.0,103940.0,0.26346616]
[1750184175130,0.73522001,103950.0,103940.0,0.27308691]
[1750184175359,0.25478154,103950.0,103940.0,0.28270738]
[1750184175567,0.27402099,103950.0,103940.0,0.28270738]
[1750184176244,0.28364099,103950.0,103940.0,0.29232766]
[1750184176501,0.28364099,103950.0,103940.0,0.34080413]
[1750184176502,0.0622388,103950.0,103940.0,0.34080413]
[1750184176643,0.08147835,103950.0,103940.0,0.29232766]
[1750184176847,0.27387919,103950.0,103940.0,0.26474187]
[1750184177048,0.27387919,103950.0,103940.0,0.27436243]
[1750184177451,0.081479,103950.0,103940.0,0.27436178]
[1750184177650,0.06223927,103950.0,103940.0,0.32104166]
[1750184177850,0.08135352,103950.0,103940.0,0.32104166]
[1750184178100,0.28337362,103950.0,103940.0,0.32104166]
[1750184178451,0.09097343,103950.0,103940.0,0.27436178]
[1750184178655,0.07185843,103950.0,103940.0,0.27436178]
[1750184178871,0.28349835,103950.0,103940.0,0.27436178]
[1750184179122,0.28349909,103950.0,103940.0,0.27436178]
[1750184179334,0.0814789,103950.0,103940.0,0.27436178]
[1750184179540,0.07185899,103950.0,103940.0,0.27436178]
[1750184179744,0.06223917,103950.0,103940.0,0.27436178]
[1750184179996,0.07185899,103950.0,103940.0,0.29285043]
[1750184180404,0.0814789,103950.0,103940.0,0.27436178]
[1750184180642,0.05261926,103950.0,103940.0,0.27436178]
[1750184180855,0.07185843,103950.0,103940.0,0.27436178]
[1750184181006,0.08147825,103950.0,103940.0,0.27436178]
[1750184181583,0.28349844,103950.0,103940.0,0.27436197]
[1750184181795,0.27387918,103950.0,103940.0,0.43536197]
[1750184182003,0.07185899,103950.0,103940.0,0.43536141]
[1750184182723,0.01923917,103950.0,103940.0,0.49814125]
[1750184183008,0.08147872,103950.0,103940.0,0.49814125]
[1750184183226,0.09109863,103950.0,103940.0,0.49814125]
[1750184183431,0.08147872,103950.0,103940.0,0.49814125]
[1750184183551,0.08147872,103950.0,103940.0,0.43536141]
[1750184183778,0.26425937,103950.0,103940.0,0.39687945]
[1750184183985,0.24502001,103950.0,103940.0,0.4065001]
[1750184184440,0.24502001,103950.0,103940.0,0.39687963]
[1750184184660,0.24502001,103950.0,103940.0,0.40650028]
[1750184184792,0.24502001,103950.0,103940.0,0.25512075]
[1750184184992,0.66208458,103950.0,103940.0,0.03384]
[1750184185219,0.24502001,103950.0,103940.0,0.24550019]
[1750184185782,0.24502001,103950.0,103940.0,0.26474112]
[1750184186107,0.24502001,103950.0,103940.0,0.24550019]
[1750184186317,0.24502001,103950.0,103940.0,0.2262587]
[1750184186545,0.24502001,103950.0,103940.0,0.23587954]
[1750184186937,1.17524572,103950.0,103940.0,0.00204]
[1750184187147,6.40174572,103950.0,103940.0,0.00204]
[1750184187359,6.56628657,103950.0,103940.0,0.0110457]
[1750184187606,6.60483194,103950.0,103940.0,0.00204]
[1750184188062,6.60483194,103950.0,103940.0,4e-05]
[1750184188482,6.646268,103950.0,103940.0,4e-05]
[1750184188879,6.89668575,103950.0,103940.0,4e-05]
[1750184189103,7.30518985,103950.0,103940.0,4e-05]
[1750184189312,6.97144869,103950.0,103940.0,4e-05]
[1750184189527,6.86976637,103950.0,103940.0,4e-05]
[1750184191009,6.61945948,103950.0,103940.0,4e-05]
[1750184191463,6.58102342,103950.0,103940.0,4e-05]
[1750184192303,7.28102342,103950.0,103940.0,4e-05]
[1750184192518,7.23102342,103950.0,103940.0,4e-05]
[1750184192744,6.87028807,103950.0,103940.0,4e-05]
[1750184192966,7.22787338,103950.0,103940.0,4e-05]
[1750184193176,6.99520336,103950.0,103940.0,4e-05]
[1750184193397,6.84520336,103950.0,103940.0,4e-05]
[1750184193619,5.55522177,103950.0,103940.0,0.01634]
[1750184193832,0.34422177,103950.0,103940.0,0.25950572]
[1750184194272,0.68422177,103950.0,103940.0,0.26912647]
[1750184194483,0.34122177,103950.0,103940.0,0.26912647]
[1750184194690,0.58798001,103950.0,103940.0,0.25402094]
[1750184194902,0.58498001,103950.0,103940.0,0.25402094]
[1750184195113,0.58498001,103950.0,103940.0,0.24439992]
[1750184195114,0.24498001,103950.0,103940.0,0.24439992]
[1750184195367,0.24498001,103950.0,103940.0,0.23577945]
[1750184195597,0.07181862,103950.0,103940.0,0.27754411]
[1750184195824,0.41181862,103950.0,103940.0,0.27754411]
[1750184196290,0.35923871,103950.0,103940.0,0.26464075]
[1750184196522,0.41181844,103950.0,103940.0,0.26464075]
[1750184196750,0.42143826,103950.0,103940.0,0.26564075]
[1750184196949,0.41181844,103950.0,103940.0,0.26564075]
[1750184197097,0.34,103950.0,103940.0,0.26564075]
[1750184197334,0.34961917,103950.0,103940.0,0.26564075]
[1750184197532,0.36885825,103950.0,103940.0,0.26564075]
[1750184197708,0.35923862,103950.0,103940.0,0.26564075]
[1750184198401,0.36885825,103950.0,103940.0,0.26564075]
[1750184200102,0.35923862,103950.0,103940.0,0.26564075]
[1750184200311,0.36885825,103950.0,103940.0,0.26564075]
[1750184200508,0.35923862,103950.0,103940.0,0.26564075]
[1750184200730,0.36885825,103950.0,103940.0,0.26564075]
[1750184200953,0.37847807,103950.0,103940.0,0.26564075]
[1750184201171,0.36885825,103950.0,103940.0,0.26564075]
[1750184201580,0.57087826,103950.0,103940.0,0.25602047]
[1750184201732,0.57087826,103950.0,103940.0,0.26564075]
[1750184201733,0.37847807,103950.0,103940.0,0.26564075]
[1750184202142,0.96881535,103950.0,103940.0,0.2271587]
[1750184202345,0.96881535,103950.0,103940.0,0.24640029]
[1750184202554,0.96881535,103950.0,103940.0,0.25602094]
[1750184202746,0.96881535,103950.0,103940.0,0.2656415]
[1750184203632,0.77641479,103950.0,103940.0,0.27526187]
[1750184203833,0.36885825,103950.0,103940.0,0.33812716]
[1750184204442,0.36885816,103950.0,103940.0,0.33812716]
[1750184204853,0.37847789,103950.0,103940.0,0.33812716]
[1750184205259,0.36885816,103950.0,103940.0,0.33812716]
[1750184205464,0.57087817,103950.0,103940.0,0.27526131]
[1750184205708,0.58049808,103950.0,103940.0,0.27526131]
[1750184205912,0.58049808,103950.0,103940.0,0.25602066]
[1750184206119,0.96881535,103950.0,103940.0,0.23677945]
[1750184206453,0.96881535,103950.0,103940.0,0.2464001]
[1750184206655,0.96881535,103950.0,103940.0,0.25602066]
[1750184206896,0.96881535,103950.0,103940.0,0.2752615]
[1750184207088,0.77641414,103950.0,103940.0,0.33812676]
[1750184207343,0.36885834,103950.0,103940.0,0.33812676]
[1750184207491,0.37847816,103950.0,103940.0,0.33812676]
[1750184207853,0.36885834,103950.0,103940.0,0.43622103]
[1750184208281,0.37847816,103950.0,103940.0,0.43622103]